fUSD/lending_fUSD_20250226
["ID","MTS","AMOUNT","RATE_DAILY","PERIOD"]
[354622778,1740595987308,-2493.41,0.00041369,14]
[354622779,1740595987318,-811.0,0.00041369,14]
[354622780,1740595987328,-2143.28,0.00041369,14]
[354622781,1740595987338,-2617.36,0.00041369,14]
[354622782,1740595987348,-1621.78,0.00041369,14]
[354622783,1740595987358,-2319.53,0.00041369,14]
[354622784,1740595987368,-500.0,0.00041369,14]
[354622785,1740595987377,-529.04,0.00041369,14]
[354622786,1740595987387,-768.45,0.00041369,14]
[354622787,1740595987397,-500.0,0.00041369,14]
[354622788,1740595987406,-1163.2,0.00041369,14]
[354622789,1740595987422,-911.1,0.00041369,14]
[354622790,1740595987432,-2143.46,0.00041369,14]
[354622791,1740595987441,-1280.98,0.00041369,14]
[354622792,1740595987451,-472.7901304,0.00041369,14]
[354622793,1740595987461,-1855.75,0.00041369,14]
[354622794,1740595987471,-873.58,0.00041369,14]
[354622795,1740595987480,-939.46,0.00041369,14]
[354622796,1740595987490,-1902.32,0.00041369,14]
[354622797,1740595987499,-1142.01,0.00041369,14]
[354622798,1740595987508,-938.37,0.00041369,14]
[354622799,1740595987518,-800.79,0.00041369,14]
[354622800,1740595987527,-512.47,0.00041369,14]
[354622801,1740595987808,-2507.28,0.00041369,2]
[354622802,1740595987824,-731.9,0.00041369,14]
[354622803,1740595987833,-1276.51,0.00041369,14]
[354622804,1740595987843,-1981.71,0.00041369,14]
[354622805,1740595987852,-708.24,0.00041369,14]
[354622806,1740595987862,-2733.74,0.00041369,14]
[354622807,1740595987884,-2252.01,0.00041369,14]
[354622808,1740595987894,-891.14,0.00041369,14]
[354622809,1740595987904,-552.36,0.00041369,14]
[354622810,1740595987917,-630.12,0.00041369,14]
[354622811,1740595987926,-642.98,0.00041369,14]
[354622812,1740595987936,-1991.31,0.00041369,14]
[354622813,1740595987945,-1022.27,0.00041369,14]
[354622814,1740595987955,-1294.07,0.00041369,14]
[354622815,1740595987964,-1853.21,0.00041369,14]
[354622816,1740595987974,-630.96,0.00041369,14]
[354622817,1740595987985,-1573.28,0.00041369,14]
[354622818,1740595987995,-2426.57,0.00041369,14]
[354622819,1740595988005,-1150.32,0.00041369,14]
[354622820,1740595988015,-2490.78,0.00041369,14]
[354622821,1740595988029,-715.02,0.00041369,14]
[354622822,1740595988039,-3484.94,0.00041369,14]
[354622823,1740595988049,-2771.33,0.00041369,14]
[354622824,1740595988059,-1596.62,0.00041369,14]
[354622825,1740595988069,-1876.78,0.00041369,14]
[354622826,1740595988079,-1560.4,0.00041369,14]
[354622827,1740595988088,-6192.85,0.00041369,14]
[354622828,1740595988098,-647.32,0.00041369,14]
[354622829,1740595988108,-1726.29,0.00041369,14]
[354622830,1740595988119,-1676.26,0.00041369,14]
[354622831,1740595988128,-2725.95,0.00041369,14]
[354622832,1740595988138,-563.72,0.00041369,14]
[354622833,1740595988147,-944.42,0.00041369,14]
[354622834,1740595988157,-3837.57,0.00041369,14]
[354622835,1740595988171,-1361.35,0.00041369,14]
[354622836,1740595988180,-1302.57,0.00041369,14]
[354622837,1740595988190,-688.53,0.00041369,14]
[354622838,1740595988200,-11693.75,0.00041369,14]
[354622839,1740595988209,-861.86,0.00041369,14]
[354622840,1740595988219,-3063.11,0.00041369,14]
[354622841,1740595988228,-1132.99,0.00041369,14]
[354622842,1740595988238,-2812.52,0.00041369,14]
[354622843,1740595988248,-2332.02,0.00041369,14]
[354622844,1740595988258,-1403.52,0.00041369,14]
[354622845,1740595988267,-2514.92,0.00041369,14]
[354622846,1740595988277,-840.17,0.00041369,14]
[354622847,1740595988286,-3032.5,0.00041369,14]
[354622848,1740595988296,-3285.15,0.00041369,14]
[354622849,1740595988306,-1217.25,0.00041369,14]
[354622850,1740595988315,-2864.92,0.00041369,14]
[354622851,1740595988324,-521.32,0.00041369,14]
[354622852,1740595988334,-829.58,0.00041369,14]
[354622853,1740595988343,-1548.49,0.00041369,14]
[354622854,1740595988353,-1797.4,0.00041369,14]
[354622855,1740595988362,-3783.79,0.00041369,14]
[354622856,1740595988371,-577.91,0.00041369,14]
[354622857,1740595988381,-1141.09,0.00041369,14]
[354622858,1740595988390,-2194.13,0.00041369,14]
[354622859,1740595988399,-2625.14,0.00041369,14]
[354622860,1740595988409,-1289.77,0.00041369,14]
[354622861,1740595988625,-564.43,0.00041369,14]
[354622862,1740595988634,-6297.9,0.00041369,14]
[354622863,1740595988644,-2622.68,0.00041369,14]
[354622864,1740595988653,-3149.85,0.00041369,14]
[354622865,1740595988665,-806.4,0.00041369,14]
[354622866,1740595988674,-2632.85,0.00041369,14]
[354622867,1740595988684,-2112.2,0.00041369,14]
[354622868,1740595988693,-3833.32,0.00041369,14]
[354622869,1740595988703,-1648.8,0.00041369,14]
[354622870,1740595988712,-5487.93,0.00041369,14]
[354622871,1740595988721,-974.58,0.00041369,14]
[354622872,1740595988731,-565.43,0.00041369,14]
[354622873,1740595988740,-1343.0,0.00041369,14]
[354622874,1740595988750,-2311.59,0.00041369,14]
[354622875,1740595988759,-11841.49,0.00041369,14]
[354622876,1740595988768,-567.13,0.00041369,14]
[354622877,1740595988778,-3413.54,0.00041369,14]
[354622878,1740595988787,-1833.27,0.00041369,14]
[354622879,1740595988797,-995.26,0.00041369,14]
[354622880,1740595988806,-1238.69,0.00041369,14]
[354622881,1740595988815,-1700.63,0.00041369,14]
[354622882,1740595988825,-2752.94,0.00041369,14]
[354622883,1740595988834,-3517.26,0.00041369,14]
[354622884,1740595988843,-1862.26,0.00041369,14]
[354622885,1740595988852,-4507.25,0.00041369,14]
[354622886,1740595988868,-7439.57,0.00041369,14]
[354622887,1740595988877,-1154.79,0.00041369,14]
[354622888,1740595988887,-639.34,0.00041369,14]
[354622889,1740595988896,-1572.85,0.00041369,14]
[354622890,1740595988905,-3421.4,0.00041369,14]
[354622891,1740595988918,-1778.87,0.00041369,14]
[354622892,1740595988928,-1616.96,0.00041369,14]
[354622893,1740595988937,-696.16,0.00041369,14]
[354622894,1740595988947,-9182.73,0.00041369,14]
[354622895,1740595988957,-6709.93,0.00041369,14]
[354622896,1740595988966,-683.41,0.00041369,14]
[354622897,1740595988976,-682.72,0.00041369,14]
[354622898,1740595988988,-4316.65,0.00041369,14]
[354622899,1740595988997,-546.58,0.00041369,14]
[354622900,1740595989007,-3317.95,0.00041369,14]
[354622901,1740595989017,-1576.59,0.00041369,14]
[354622902,1740595989030,-604.02,0.00041369,14]
[354622903,1740595989040,-682.23,0.00041369,14]
[354622904,1740595989050,-876.15,0.00041369,14]
[354622905,1740595989060,-1898.38,0.00041369,14]
[354622906,1740595989070,-3418.9,0.00041369,14]
[354622907,1740595989080,-749.16,0.00041369,14]
[354622908,1740595989090,-2938.03,0.00041369,14]
[354622909,1740595989099,-1228.02,0.00041369,14]
[354622910,1740595989110,-2258.95,0.00041369,14]
[354622911,1740595989120,-1052.77,0.00041369,14]
[354622912,1740595989129,-932.43,0.00041369,14]
[354622913,1740595989139,-1087.18,0.00041369,14]
[354622914,1740595989149,-3770.5,0.00041369,14]
[354622915,1740595989159,-4443.37,0.00041369,14]
[354622916,1740595989173,-841.55,0.00041369,14]
[354622917,1740595989183,-4370.98,0.00041369,14]
[354622918,1740595989193,-1077.8,0.00041369,14]
[354622919,1740595989203,-1662.55,0.00041369,14]
[354622920,1740595989213,-1684.75,0.00041369,14]
[354622921,1740595989223,-732.3,0.00041369,14]
[354622922,1740595989232,-669.42,0.00041369,14]
[354622923,1740595989242,-2153.43,0.00041369,14]
[354622924,1740595989251,-2455.03,0.00041369,14]
[354622925,1740595989260,-500.0,0.00041369,14]
[354622926,1740595989269,-8707.22,0.00041369,14]
[354622927,1740595989279,-555.94,0.00041369,14]
[354622928,1740595989288,-661.77,0.00041369,14]
[354622929,1740595989297,-1962.86,0.00041369,14]
[354622930,1740595989306,-1465.58,0.00041369,14]
[354622931,1740595989315,-14121.36,0.00041369,14]
[354622932,1740595989325,-3029.66,0.00041369,14]
[354622933,1740595989334,-3158.55,0.00041369,14]
[354622934,1740595989343,-677.06,0.00041369,14]
[354622935,1740595989352,-1234.59,0.00041369,14]
[354622936,1740595989362,-1124.82,0.00041369,14]
[354622937,1740595989371,-1087.29,0.00041369,14]
[354622938,1740595989381,-1184.83,0.00041369,14]
[354622939,1740595989390,-766.23,0.00041369,14]
[354622940,1740595989399,-1001.3,0.00041369,14]
[354622941,1740595989409,-617.69,0.00041369,14]
[354622942,1740595989421,-1731.67,0.00041369,14]
[354622943,1740595989431,-3138.97,0.00041369,14]
[354622944,1740595989439,-527.05,0.00041369,14]
[354622945,1740595989449,-1244.63,0.00041369,14]
[354622946,1740595989458,-850.11,0.00041369,14]
[354622947,1740595989467,-2099.68,0.00041369,14]
[354622948,1740595989476,-1394.32,0.00041369,14]
[354622949,1740595989485,-1086.92,0.00041369,14]
[354622950,1740595989494,-1256.63,0.00041369,14]
[354622951,1740595989503,-1776.24,0.00041369,14]
[354622952,1740595989512,-3802.94,0.00041369,14]
[354622953,1740595989521,-772.03,0.00041369,14]
[354622954,1740595989530,-500.0,0.00041369,14]
[354622955,1740595989540,-773.62,0.00041369,14]
[354622956,1740595989549,-666.36,0.00041369,14]
[354622957,1740595989558,-1317.17,0.00041369,14]
[354622958,1740595989568,-1264.32,0.00041369,14]
[354622959,1740595989577,-1507.85,0.00041369,14]
[354622960,1740595989587,-4383.06,0.00041369,14]
[354622961,1740595989596,-2961.3,0.00041369,14]
[354622962,1740595989605,-1388.89,0.00041369,14]
[354622963,1740595989614,-556.93,0.00041369,14]
[354622964,1740595989624,-3155.81,0.00041369,14]
[354622965,1740595989633,-561.98,0.00041369,14]
[354622966,1740595989642,-2270.77,0.00041369,14]
[354622967,1740595989651,-1749.77,0.00041397,120]
[354622968,1740595989661,-377.46614524,0.00041397,30]
[354622969,1740595989672,-1749.77,0.00041424,120]
[354622970,1740595989683,-1749.77,0.00041452,120]
[354622971,1740595989692,-1000.0,0.00041452,10]
[354622972,1740595989702,-1749.77,0.00041479,120]
[354622973,1740595989711,-205.0,0.0004148,30]
[354622974,1740595989721,-1749.77,0.00041506,120]
[354622975,1740595989730,-1749.77,0.00041534,120]
[354622976,1740595989741,-1749.77,0.00041561,120]
[354622977,1740595989750,-1749.77,0.00041589,120]
[354622978,1740595989760,-377.46614524,0.00041589,30]
[354622979,1740595989769,-300.0,0.000416,2]
[354622980,1740595989779,-300.0,0.000416,2]
[354622981,1740595989789,-1749.77,0.00041616,120]
[354622982,1740595989798,-672.636069,0.00041643,14]
[354622983,1740595989807,-676.71,0.00041643,14]
[354622984,1740595989817,-1501.590989,0.00041643,14]
[354622985,1740595989827,-870.39,0.00041643,14]
[354622986,1740595989836,-814.89,0.00041643,14]
[354622987,1740595989846,-1069.27,0.00041643,14]
[354622988,1740595989857,-1090.2,0.00041643,14]
[354622989,1740595989867,-1150.39,0.00041643,14]
[354622990,1740595989876,-701.36,0.00041643,14]
[354622991,1740595989887,-841.82,0.00041643,14]
[354622992,1740595989897,-670.19,0.00041643,14]
[354622993,1740595989907,-1844.05,0.00041643,14]
[354622994,1740595989918,-747.92,0.00041643,14]
[354622995,1740595989928,-835.83,0.00041643,14]
[354622996,1740595989937,-738.6,0.00041643,14]
[354622997,1740595989947,-1533.87,0.00041643,14]
[354622998,1740595989957,-1414.25,0.00041643,14]
[354622999,1740595989967,-865.08,0.00041643,14]
[354623000,1740595989978,-633.98,0.00041643,14]
[354623001,1740595989988,-600.33,0.00041643,14]
[354623002,1740595989998,-580.36,0.00041643,14]
[354623003,1740595990008,-742.35,0.00041643,14]
[354623004,1740595990020,-732.49,0.00041643,14]
[354623005,1740595990032,-527.1,0.00041643,14]
[354623006,1740595990044,-513.19347717,0.00041643,14]
[354623007,1740595990054,-935.03,0.00041643,14]
[354623008,1740595990064,-581.31,0.00041643,14]
[354623009,1740595990074,-689.49,0.00041643,14]
[354623010,1740595990084,-689.42,0.00041643,14]
[354623011,1740595990093,-543.41,0.00041643,14]
[354623012,1740595990104,-571.34,0.00041643,14]
[354623013,1740595990114,-696.87,0.00041643,14]
[354623014,1740595990123,-1290.39,0.00041643,14]
[354623015,1740595990134,-546.44,0.00041643,14]
[354623016,1740595990143,-594.86,0.00041643,14]
[354623017,1740595990154,-635.18,0.00041643,14]
[354623018,1740595990167,-617.43,0.00041643,14]
[354623019,1740595990178,-665.21,0.00041643,14]
[354623020,1740595990189,-858.4,0.00041643,14]
[354623021,1740595990199,-460.92431392,0.00041643,14]
[354623022,1740595990209,-1850.02,0.00041643,14]
[354623023,1740595990220,-1161.63,0.00041643,14]
[354623024,1740595990230,-1036.04,0.00041643,14]
[354623025,1740595990240,-2240.29,0.00041643,14]
[354623026,1740595990251,-608.93,0.00041643,14]
[354623027,1740595990261,-2310.8,0.00041643,14]
[354623028,1740595990271,-1018.81,0.00041643,14]
[354623029,1740595990281,-871.69,0.00041643,14]
[354623030,1740595990291,-1006.27,0.00041643,14]
[354623031,1740595990301,-595.91,0.00041643,14]
[354623032,1740595990311,-1116.49,0.00041643,14]
[354623033,1740595990321,-641.45,0.00041643,14]
[354623034,1740595990331,-772.83,0.00041643,14]
[354623035,1740595990341,-872.15,0.00041643,14]
[354623036,1740595990350,-935.7,0.00041643,14]
[354623037,1740595990360,-1308.99,0.00041643,14]
[354623038,1740595990370,-649.25,0.00041643,14]
[354623039,1740595990380,-1082.33,0.00041643,14]
[354623040,1740595990389,-234.85308394,0.00041643,14]
[354623041,1740595990399,-513.39,0.00041643,14]
[354623042,1740595990408,-1176.81,0.00041643,14]
[354623043,1740595990421,-1686.11,0.00041643,14]
[354623044,1740595990510,-547.24,0.00041643,14]
[354623045,1740595990521,-538.09,0.00041643,14]
[354623046,1740595990530,-811.61,0.00041643,14]
[354623047,1740595990540,-1804.38,0.00041643,14]
[354623048,1740595990549,-969.08,0.00041643,14]
[354623049,1740595990558,-2234.9,0.00041643,14]
[354623050,1740595990568,-877.13,0.00041643,14]
[354623051,1740595990578,-582.64,0.00041643,14]
[354623052,1740595990588,-267.88913022,0.00041643,14]
[354623053,1740595990598,-1855.35,0.00041643,14]
[354623054,1740595990607,-1019.59,0.00041643,14]
[354623055,1740595990617,-2120.11,0.00041643,14]
[354623056,1740595990627,-1021.29,0.00041643,14]
[354623057,1740595990636,-1613.94,0.00041643,14]
[354623058,1740595990645,-572.27,0.00041643,14]
[354623059,1740595990655,-982.48,0.00041643,14]
[354623060,1740595990667,-1105.78,0.00041643,14]
[354623061,1740595990678,-2258.29,0.00041643,14]
[354623062,1740595990688,-1496.14,0.00041643,14]
[354623063,1740595990699,-1313.98,0.00041643,14]
[354623064,1740595990710,-782.62,0.00041643,14]
[354623065,1740595990720,-633.15,0.00041643,14]
[354623066,1740595990731,-1614.67,0.00041643,14]
[354623067,1740595990740,-2802.17,0.00041643,120]
[354623068,1740595990750,-777.94,0.00041643,14]
[354623069,1740595990760,-1119.74,0.00041643,14]
[354623070,1740595990771,-630.05,0.00041643,14]
[354623071,1740595990781,-500.0,0.00041643,14]
[354623072,1740595990791,-1550.01,0.00041643,14]
[354623073,1740595990802,-898.54,0.00041643,14]
[354623074,1740595990812,-666.5,0.00041643,14]
[354623075,1740595990822,-986.29,0.00041643,14]
[354623076,1740595990832,-1800.45,0.00041643,14]
[354623077,1740595990842,-1038.19,0.00041643,14]
[354623078,1740595990851,-722.35,0.00041643,14]
[354623079,1740595990861,-777.79,0.00041643,14]
[354623080,1740595990872,-1016.47,0.00041643,14]
[354623081,1740595990881,-583.31,0.00041643,14]
[354623082,1740595990892,-529.67,0.00041643,14]
[354623083,1740595990903,-746.65,0.00041643,14]
[354623084,1740595990915,-806.05,0.00041643,14]
[354623085,1740595990925,-886.7,0.00041643,14]
[354623086,1740595990935,-820.28,0.00041643,14]
[354623087,1740595990945,-1501.14,0.00041643,14]
[354623088,1740595990955,-921.34,0.00041643,14]
[354623089,1740595990964,-699.59,0.00041643,14]
[354623090,1740595990975,-1003.76,0.00041643,14]
[354623091,1740595990991,-1495.63,0.00041643,14]
[354623092,1740595991001,-834.44,0.00041643,14]
[354623093,1740595991010,-831.3,0.00041643,14]
[354623094,1740595991020,-675.74,0.00041643,14]
[354623095,1740595991033,-917.03,0.00041643,14]
[354623096,1740595991043,-551.68,0.00041643,14]
[354623097,1740595991053,-681.62,0.00041643,14]
[354623098,1740595991063,-1958.47,0.00041643,14]
[354623099,1740595991071,-1067.6,0.00041643,14]
[354623100,1740595991080,-500.0,0.00041643,14]
[354623101,1740595991090,-636.63,0.00041643,14]
[354623102,1740595991100,-1007.51,0.00041643,14]
[354623103,1740595991109,-826.67,0.00041643,14]
[354623104,1740595991119,-532.65,0.00041643,14]
[354623105,1740595991129,-1255.98,0.00041643,14]
[354623106,1740595991138,-1084.65,0.00041643,14]
[354623107,1740595991148,-510.04,0.00041643,14]
[354623108,1740595991158,-1101.48,0.00041643,14]
[354623109,1740595991172,-634.72,0.00041643,14]
[354623110,1740595991181,-1749.77,0.00041643,120]
[354623111,1740595991192,-842.79,0.00041643,14]
[354623112,1740595991202,-861.46,0.00041643,14]
[354623113,1740595991211,-765.4,0.00041643,14]
[354623114,1740595991222,-604.9,0.00041643,14]
[354623115,1740595991231,-1116.67,0.00041643,14]
[354623116,1740595991240,-1441.7,0.00041643,14]
[354623117,1740595991250,-754.28,0.00041643,14]
[354623118,1740595991260,-929.23,0.00041643,14]
[354623119,1740595991269,-718.11,0.00041643,14]
[354623120,1740595991279,-1403.66,0.00041643,14]
[354623121,1740595991290,-1217.5,0.00041643,14]
[354623122,1740595991300,-1107.15,0.00041643,14]
[354623123,1740595991310,-1834.12,0.00041643,14]
[354623124,1740595991319,-902.19,0.00041643,14]
[354623125,1740595991329,-561.55,0.00041643,14]
[354623126,1740595991338,-565.94,0.00041643,14]
[354623127,1740595991347,-1996.52,0.00041643,14]
[354623128,1740595991357,-563.43,0.00041643,14]
[354623129,1740595991366,-1467.19,0.00041643,14]
[354623130,1740595991376,-1321.18,0.00041643,14]
[354623131,1740595991386,-1902.42,0.00041643,14]
[354623132,1740595991395,-1140.97,0.00041643,14]
[354623133,1740595991405,-528.46,0.00041643,14]
[354623134,1740595991418,-651.71,0.00041643,14]
[354623135,1740595991427,-1073.87,0.00041643,14]
[354623136,1740595991440,-1235.9,0.00041643,14]
[354623137,1740595991450,-583.0,0.00041643,14]
[354623138,1740595991460,-642.59,0.00041643,14]
[354623139,1740595991471,-1162.07,0.00041643,14]
[354623140,1740595991481,-1175.03,0.00041643,14]
[354623141,1740595991490,-562.88,0.00041643,14]
[354623142,1740595991500,-1123.12,0.00041643,14]
[354623143,1740595991510,-1360.38,0.00041643,14]
[354623144,1740595991519,-990.04,0.00041643,14]
[354623145,1740595991529,-376.63618038,0.00041643,14]
[354623146,1740595991538,-758.81,0.00041643,14]
[354623147,1740595991548,-1858.11,0.00041643,14]
[354623148,1740595991558,-743.78,0.00041643,14]
[354623149,1740595991569,-836.2,0.00041643,14]
[354623150,1740595991579,-552.16,0.00041643,14]
[354623151,1740595991588,-957.01,0.00041643,14]
[354623152,1740595991600,-1949.61,0.00041643,14]
[354623153,1740595991621,-1008.01,0.00041643,14]
[354623154,1740595991631,-1466.22,0.00041643,14]
[354623155,1740595991640,-1152.19,0.00041643,14]
[354623156,1740595991650,-2482.2,0.00041643,14]
[354623157,1740595991660,-1828.52,0.00041643,14]
[354623158,1740595991676,-527.63,0.00041643,14]
[354623159,1740595991685,-873.77,0.00041643,14]
[354623160,1740595991694,-1665.67,0.00041643,14]
[354623161,1740595991704,-500.0,0.00041643,14]
[354623162,1740595991713,-1934.6,0.00041643,14]
[354623163,1740595991723,-786.06,0.00041643,14]
[354623164,1740595991732,-1875.12,0.00041643,14]
[354623165,1740595991742,-1075.72,0.00041643,14]
[354623166,1740595991751,-554.85,0.00041643,14]
[354623167,1740595991760,-956.32,0.00041643,14]
[354623168,1740595991769,-500.0,0.00041643,14]
[354623169,1740595991779,-1163.37,0.00041643,14]
[354623170,1740595991788,-1037.67,0.00041643,14]
[354623171,1740595991798,-2110.11,0.00041643,14]
[354623172,1740595991807,-655.67,0.00041643,14]
[354623173,1740595991817,-519.01,0.00041643,14]
[354623174,1740595991825,-754.12,0.00041643,14]
[354623175,1740595991835,-1351.39,0.00041643,14]
[354623176,1740595991844,-1595.01,0.00041643,14]
[354623177,1740595991855,-883.23,0.00041643,14]
[354623178,1740595991864,-978.64,0.00041643,14]
[354623179,1740595991873,-544.48,0.00041643,14]
[354623180,1740595991882,-1282.93,0.00041643,14]
[354623181,1740595991891,-1979.65,0.00041643,14]
[354623182,1740595991901,-1465.82,0.00041643,14]
[354623183,1740595991910,-1395.89,0.00041643,14]
[354623184,1740595991922,-854.86,0.00041643,14]
[354623185,1740595991931,-1505.0,0.00041643,14]
[354623186,1740595991940,-924.09,0.00041643,14]
[354623187,1740595991950,-711.08,0.00041643,14]
[354623188,1740595991959,-552.43,0.00041643,14]
[354623189,1740595991969,-895.76,0.00041643,14]
[354623190,1740595991981,-932.59,0.00041643,14]
[354623191,1740595991991,-1558.86,0.00041643,14]
[354623192,1740595992000,-912.19,0.00041643,14]
[354623193,1740595992009,-551.46,0.00041643,14]
[354623194,1740595992020,-3271.55,0.00041643,14]
[354623195,1740595992031,-3117.32,0.00041643,14]
[354623196,1740595992040,-896.05,0.00041643,14]
[354623197,1740595992050,-1469.5,0.00041643,14]
[354623198,1740595992059,-1970.34,0.00041643,14]
[354623199,1740595992069,-1219.67,0.00041643,14]
[354623200,1740595992079,-1261.87,0.00041643,120]
[354623201,1740595992089,-1258.23,0.00041643,14]
[354623202,1740595992100,-1003.98,0.00041643,14]
[354623203,1740595992111,-802.71,0.00041643,14]
[354623204,1740595992121,-1048.22,0.00041643,14]
[354623205,1740595992131,-12754.69,0.00041643,14]
[354623206,1740595992140,-760.48,0.00041643,14]
[354623207,1740595992150,-1559.74,0.00041643,14]
[354623208,1740595992159,-1039.17,0.00041643,14]
[354623209,1740595992170,-968.47,0.00041643,14]
[354623210,1740595992180,-975.3,0.00041643,14]
[354623211,1740595992190,-884.61,0.00041643,14]
[354623212,1740595992199,-677.65,0.00041643,14]
[354623213,1740595992209,-581.51,0.00041643,14]
[354623214,1740595992218,-559.35,0.00041643,14]
[354623215,1740595992228,-1068.0,0.00041643,14]
[354623216,1740595992237,-1096.63,0.00041643,14]
[354623217,1740595992246,-1472.3,0.00041643,14]
[354623218,1740595992255,-882.85,0.00041643,14]
[354623219,1740595992265,-505.62,0.00041643,14]
[354623220,1740595992274,-1708.56,0.00041643,14]
[354623221,1740595992283,-966.9,0.00041643,14]
[354623222,1740595992292,-1141.53,0.00041643,7]
[354623223,1740595992301,-811.04,0.00041643,14]
[354623224,1740595992313,-1382.5,0.00041643,14]
[354623225,1740595992327,-669.94,0.00041643,14]
[354623226,1740595992337,-691.77,0.00041643,14]
[354623227,1740595992346,-1910.93,0.00041643,14]
[354623228,1740595992356,-530.0,0.00041643,14]
[354623229,1740595992365,-500.0,0.00041643,14]
[354623230,1740595992374,-874.49,0.00041643,14]
[354623231,1740595992384,-776.22,0.00041643,14]
[354623232,1740595992393,-2493.41,0.00041643,14]
[354623233,1740595992402,-811.0,0.00041643,14]
[354623234,1740595992414,-2143.28,0.00041643,14]
[354623235,1740595992424,-2617.36,0.00041643,14]
[354623236,1740595992434,-1621.78,0.00041643,14]
[354623237,1740595992443,-2319.53,0.00041643,14]
[354623238,1740595992452,-500.0,0.00041643,14]
[354623239,1740595992462,-529.04,0.00041643,14]
[354623240,1740595992471,-768.45,0.00041643,14]
[354623241,1740595992481,-500.0,0.00041643,14]
[354623242,1740595992490,-1163.2,0.00041643,14]
[354623243,1740595992499,-911.1,0.00041643,14]
[354623244,1740595992508,-2143.46,0.00041643,14]
[354623245,1740595992518,-1280.98,0.00041643,14]
[354623246,1740595992527,-1855.75,0.00041643,14]
[354623247,1740595992537,-873.58,0.00041643,14]
[354623248,1740595992547,-939.46,0.00041643,14]
[354623249,1740595992556,-1902.32,0.00041643,14]
[354623250,1740595992565,-1142.01,0.00041643,14]
[354623251,1740595992575,-800.79,0.00041643,14]
[354623252,1740595992584,-2507.28,0.00041643,2]
[354623253,1740595992594,-512.47,0.00041643,14]
[354623254,1740595992603,-938.37,0.00041643,14]
[354623255,1740595992612,-731.9,0.00041643,14]
[354623256,1740595992621,-1276.51,0.00041643,14]
[354623257,1740595992631,-1981.71,0.00041643,14]
[354623258,1740595992640,-708.24,0.00041643,14]
[354623259,1740595992649,-2733.74,0.00041643,14]
[354623260,1740595992659,-2252.01,0.00041643,14]
[354623261,1740595992673,-891.14,0.00041643,14]
[354623262,1740595992684,-552.36,0.00041643,14]
[354623263,1740595992694,-630.12,0.00041643,14]
[354623264,1740595992704,-642.98,0.00041643,14]
[354623265,1740595992714,-1991.31,0.00041643,14]
[354623266,1740595992724,-1022.27,0.00041643,14]
[354623267,1740595992735,-1294.07,0.00041643,14]
[354623268,1740595992744,-1853.21,0.00041643,14]
[354623269,1740595992753,-630.96,0.00041643,14]
[354623270,1740595992762,-1573.28,0.00041643,14]
[354623271,1740595992771,-2426.57,0.00041643,14]
[354623272,1740595992781,-1150.32,0.00041643,14]
[354623273,1740595992790,-2490.78,0.00041643,14]
[354623274,1740595992800,-715.02,0.00041643,14]
[354623275,1740595992809,-3484.94,0.00041643,14]
[354623276,1740595992819,-2771.33,0.00041643,14]
[354623277,1740595992828,-1596.62,0.00041643,14]